bitfinex-derivatives/quotes_SOLF0:USTF0_20250227
["timestamp","ask_amount","ask_price","bid_price","bid_amount"]
[1740697966998,0.05115146,137.26,137.24,20.10454999]
[1740697967702,0.05115146,137.26,137.2,86.14422553]
[1740697967905,0.05115146,137.26,137.22,20.10454999]
[1740697968301,7.2926,137.25,137.22,20.10454999]
[1740697969605,0.05115146,137.26,137.22,20.10454999]
[1740697969905,7.2929,137.24,137.22,20.10454999]
[1740697971202,7.2934,137.23,137.17,13.2198]
[1740697971404,7.2934,137.23,137.21,20.10454999]
[1740697971605,0.05302288,137.22,137.21,20.10454999]
[1740697971803,0.05302288,137.22,137.17,13.2198]
[1740697972008,0.05302288,137.22,137.19,20.10454999]
[1740697972208,209.86,137.26,137.19,20.10454999]
[1740697972405,0.04714859,137.22,137.19,20.10454999]
[1740697972601,7.2948,137.21,137.19,20.10454999]
[1740697973204,7.34124859,137.22,137.2,20.10454999]
[1740697973503,7.2941,137.22,137.2,20.10454999]
[1740697973704,7.34706766,137.22,137.2,20.10454999]
[1740697974604,7.2945,137.21,137.09,5.8975]
[1740697974808,7.2945,137.21,137.19,20.10454999]
[1740697975208,7.34609498,137.21,137.19,20.10454999]
[1740697975809,0.05159498,137.21,137.2,20.10454999]
[1740697976005,7.2941,137.22,137.2,20.10454999]
[1740697976210,7.34748709,137.22,137.2,20.10454999]
[1740697976805,0.05338709,137.22,137.2,20.10454999]
[1740697977823,0.05338709,137.22,137.09,5.8975]
[1740697977824,0.05338709,137.22,137.21,20.10454999]
[1740697978119,0.05155334,137.23,137.19,20.10454999]
[1740697978420,7.2945,137.21,137.19,20.10454999]
[1740697979020,7.2945,137.21,137.16,7.2968]
[1740697979220,7.2945,137.21,137.18,20.10454999]
[1740697979420,0.05423737,137.2,137.18,20.10454999]
[1740697980618,0.05423737,137.2,137.19,20.10454999]
[1740697980922,7.2942,137.22,137.19,20.10454999]
[1740697981121,0.05388336,137.21,137.19,20.10454999]
[1740697981621,7.34838336,137.21,137.19,20.10454999]
[1740697982420,0.05388336,137.21,137.19,20.10454999]
[1740697982723,0.05388336,137.21,137.15,7.2975]
[1740697982924,231.76,137.26,137.18,20.10454999]
[1740697983124,0.04888371,137.19,137.18,20.10454999]
[1740697983320,231.76,137.26,137.15,7.2974]
[1740697983520,0.05487916,137.2,137.18,20.10454999]
[1740697983715,7.2954,137.2,137.15,7.2974]
[1740697983919,7.34665847,137.2,137.18,20.10454999]
[1740697984222,7.34665847,137.2,137.16,7.2971]
[1740697984423,7.2954,137.2,137.18,20.10454999]
[1740697984624,0.05288777,137.19,137.18,20.10454999]
[1740697984826,7.2947,137.21,137.16,7.2971]
[1740697985023,0.05014292,137.2,137.18,20.10454999]
[1740697985425,0.05014292,137.2,137.16,7.2971]
[1740697985620,7.34524292,137.2,137.18,20.10454999]
[1740697985925,7.2951,137.2,137.18,20.10454999]
[1740697986125,7.34837908,137.2,137.15,7.2974]
[1740697986425,7.34837908,137.2,137.18,20.10454999]
[1740697986817,7.34837908,137.2,137.15,7.2974]
[1740697987017,7.34837908,137.2,137.18,20.10454999]
[1740697987223,7.34837908,137.2,137.15,7.2974]
[1740697987526,7.34837908,137.2,137.18,20.10454999]
[1740697988026,7.2958,137.19,137.09,5.8975]
[1740697988229,7.2958,137.19,137.17,20.10454999]
[1740697988721,7.3425661,137.19,137.09,5.8975]
[1740697988916,7.2956,137.19,137.17,20.10454999]
[1740697989321,7.2961,137.18,137.09,5.8975]
[1740697989524,11.56,137.19,137.14,20.10454999]
[1740697989726,0.05273911,137.15,137.14,20.10454999]
[1740697989930,7.2975,137.16,137.1,7.3001]
[1740697990129,0.05304849,137.16,137.13,20.10454999]
[1740697990326,0.05304849,137.16,137.12,20.10454999]
[1740697990520,0.05304849,137.16,137.13,20.10454999]
[1740697990727,0.05304849,137.16,137.14,20.10454999]
[1740697991223,0.05304849,137.16,137.11,7.2995]
[1740697991527,0.05304849,137.16,137.12,20.10454999]
[1740697991726,7.35044849,137.16,137.12,20.10454999]
[1740697992327,7.2977,137.15,137.12,20.10454999]
[1740697992522,0.05304849,137.16,137.12,20.10454999]
[1740697993227,0.05304849,137.16,137.12,27.40364999]
[1740697993728,0.05304849,137.16,137.13,20.10454999]
[1740697993931,0.05304849,137.16,137.13,27.40294999]
[1740697994131,0.05304849,137.16,137.09,5.8975]
[1740697994132,0.05304849,137.16,137.15,20.10454999]
[1740697997733,0.05304849,137.16,137.15,27.40224999]
[1740697999537,0.05304849,137.16,137.15,20.10454999]
[1740698001237,0.05304849,137.16,137.09,5.8975]
[1740698001436,0.05304849,137.16,137.14,20.10454999]
[1740698002637,0.05304849,137.16,137.09,5.8975]
[1740698002841,0.05304849,137.16,137.14,20.10454999]
[1740698003532,0.05304849,137.16,137.12,7.299]
[1740698003729,0.05304849,137.16,137.13,20.10454999]
[1740698007932,7.35044849,137.16,137.11,7.2996]
[1740698008136,7.35044849,137.16,137.12,20.10454999]
[1740698009138,0.05304849,137.16,137.13,20.10454999]
[1740698009439,0.05304849,137.16,137.15,20.10454999]
[1740698010141,0.05304849,137.16,137.15,27.40224999]
[1740698014242,0.05304849,137.16,137.15,20.10454999]
[1740698016644,0.05304849,137.16,137.15,27.40224999]
[1740698019246,0.05304849,137.16,137.15,20.10454999]
[1740698020746,0.05304849,137.16,137.13,7.2985]
[1740698021049,0.05304849,137.16,137.14,20.10454999]
[1740698021249,7.35034849,137.16,137.14,20.10454999]
[1740698023147,7.2982,137.14,137.1,7.3001]
[1740698023344,0.05304849,137.16,137.11,20.10454999]
[1740698023549,15.5171,137.15,137.05,46.28461013]
[1740698023750,7.299,137.13,137.09,20.10454999]
[1740698024151,0.05574964,137.12,137.07,7.3016]
[1740698024455,7.35524964,137.12,137.08,20.10454999]
[1740698024848,7.3001,137.11,137.08,20.10454999]
[1740698025552,0.05574964,137.12,137.09,20.10454999]
[1740698026151,0.05574964,137.12,137.08,7.3012]
[1740698026353,0.05574964,137.12,137.09,20.10454999]
[1740698026753,0.05574964,137.12,137.08,7.3012]
[1740698026953,0.05574964,137.12,137.09,20.10454999]
[1740698027454,0.05574964,137.12,137.08,7.3012]
[1740698027653,0.05574964,137.12,137.09,20.10454999]
[1740698028453,0.05574964,137.12,137.08,7.3012]
[1740698028647,0.05574964,137.12,137.09,20.10454999]
[1740698029259,0.05574964,137.12,137.04,1.9718]
[1740698029556,0.05574964,137.12,137.09,20.10454999]
[1740698029854,0.05574964,137.12,137.08,7.3011]
[1740698030048,0.05574964,137.12,137.09,20.10454999]
[1740698030243,0.05574964,137.12,137.08,7.3011]
[1740698030445,0.05574964,137.12,137.09,20.10454999]
[1740698030649,0.05574964,137.12,137.08,7.3011]
[1740698030854,0.05574964,137.12,137.09,20.10454999]
[1740698031054,0.05574964,137.12,137.08,7.3011]
[1740698031055,7.35514964,137.12,137.08,7.3011]
[1740698031257,7.35514964,137.12,137.09,20.10454999]
[1740698031656,7.35514964,137.12,137.04,1.9718]
[1740698031954,7.35514964,137.12,137.09,20.10454999]
[1740698032257,7.35514964,137.12,137.04,1.9718]
[1740698032258,0.05574964,137.12,137.04,1.9718]
[1740698032449,0.05574964,137.12,137.08,20.10454999]
[1740698032650,7.3002,137.11,137.08,20.10454999]
[1740698033259,0.05574964,137.12,137.05,7.3027]
[1740698033459,0.05574964,137.12,137.07,20.10454999]
[1740698033850,0.05574964,137.12,137.03,0.88064971]
[1740698034047,1.9081,137.14,137.07,20.10454999]
[1740698034350,0.05030851,137.09,137.07,20.10454999]
[1740698034655,0.05108969,137.09,137.05,7.3026]
[1740698034856,0.05108969,137.09,137.02,2.0264]
[1740698034857,0.05108969,137.09,137.06,20.10454999]
[1740698035046,0.05108969,137.09,137.05,20.10454999]
[1740698035447,7.35218969,137.09,137.05,20.10454999]
[1740698035952,0.05108969,137.09,137.06,20.10454999]
[1740698036257,0.05108969,137.09,137.07,20.10454999]
[1740698037261,0.05108969,137.09,137.07,27.40644999]
[1740698037456,0.05108969,137.09,137.08,20.10454999]
[1740698038055,0.05108969,137.09,137.05,7.3027]
[1740698038257,0.05108969,137.09,137.08,20.10454999]
[1740698038561,0.05108969,137.09,137.07,20.10454999]
[1740698038960,0.05108969,137.09,137.02,2.0264]
[1740698039164,7.35188969,137.09,137.07,20.10454999]
[1740698039359,7.35188969,137.09,137.04,7.303]
[1740698039560,7.35188969,137.09,137.07,20.10454999]
[1740698039858,7.35188969,137.09,137.04,7.303]
[1740698040053,7.3014,137.08,137.06,20.10454999]
[1740698040256,7.3014,137.08,137.03,7.3038]
[1740698040462,7.3014,137.08,137.06,20.10454999]
[1740698040663,7.3014,137.08,137.03,7.3038]
[1740698040865,7.3014,137.08,137.06,20.10454999]
[1740698041164,7.3014,137.08,137.03,7.3038]
[1740698041364,7.3014,137.08,137.06,20.10454999]
[1740698041566,7.3014,137.08,137.03,7.3038]
[1740698041768,7.3019,137.07,137.06,20.10454999]
[1740698042166,0.05108969,137.09,137.06,20.10454999]
[1740698043372,7.3016,137.08,137.06,20.10454999]
[1740698043574,0.05108969,137.09,137.02,2.0264]
[1740698043774,0.05108969,137.09,137.06,20.10454999]
[1740698044075,7.3017,137.08,137.03,7.3038]
[1740698044371,7.3017,137.08,137.06,20.10454999]
[1740698044572,7.3017,137.08,137.03,7.3038]
[1740698044773,7.3017,137.08,137.06,20.10454999]
[1740698045175,7.3017,137.08,137.03,7.3038]
[1740698045472,7.3017,137.08,137.05,20.10454999]
[1740698047676,0.05108969,137.09,137.06,20.10454999]
[1740698047881,7.35208969,137.09,137.06,20.10454999]
[1740698057689,7.35208969,137.09,137.07,20.10454999]
[1740698057882,0.05108969,137.09,137.07,20.10454999]
[1740698058687,0.05108969,137.09,137.08,27.40594999]
[1740698059694,0.05108969,137.09,137.08,20.10454999]
[1740698060581,0.05108969,137.09,137.02,2.0264]
[1740698060786,0.05108969,137.09,137.06,20.10454999]
[1740698062091,7.3016,137.08,137.06,20.10454999]
[1740698062591,7.3016,137.08,137.03,7.3038]
[1740698062791,7.3016,137.08,137.07,20.10454999]
[1740698063193,7.3016,137.08,137.03,7.3038]
[1740698063386,7.3016,137.08,137.07,20.10454999]
[1740698063587,7.3016,137.08,137.03,7.3038]
[1740698063786,7.3016,137.08,137.07,20.10454999]
[1740698064189,7.3019,137.07,137.03,7.3038]
[1740698064591,7.3019,137.07,137.06,20.10454999]
[1740698069799,7.3017,137.08,137.06,20.10454999]
[1740698070099,0.05108969,137.09,137.06,20.10454999]
[1740698070296,7.3023,137.07,137.03,7.3037]
[1740698070499,7.3023,137.07,137.06,20.10454999]
[1740698070890,7.3023,137.07,137.03,7.3037]
[1740698071092,7.3023,137.07,137.06,20.10454999]
[1740698071293,7.3023,137.07,137.03,7.3037]
[1740698071489,7.3023,137.07,137.05,20.10454999]
[1740698071700,0.05108969,137.09,137.05,20.10454999]
[1740698071894,7.3017,137.08,137.05,20.10454999]
[1740698072401,7.3021,137.07,137.05,20.10454999]
[1740698073599,0.05108969,137.09,137.05,20.10454999]
[1740698073800,7.3016,137.08,137.05,20.10454999]
[1740698074204,7.35218969,137.09,137.05,20.10454999]
[1740698074796,7.35218969,137.09,137.05,27.40754999]
[1740698077700,7.35218969,137.09,137.06,20.10454999]
[1740698078094,7.35218969,137.09,137.05,7.303]
[1740698078299,7.35218969,137.09,137.06,20.10454999]
[1740698078500,7.35228969,137.09,137.06,20.10454999]
[1740698078699,7.35228969,137.09,137.05,7.303]
[1740698078901,7.35228969,137.09,137.06,20.10454999]
[1740698079303,7.35228969,137.09,137.05,7.303]
[1740698079601,7.35228969,137.09,137.06,20.10454999]
[1740698080006,7.35228969,137.09,137.05,7.303]
[1740698080202,7.35228969,137.09,137.06,20.10454999]
[1740698080597,7.35228969,137.09,137.05,7.303]
[1740698080799,7.35228969,137.09,137.06,20.10454999]
[1740698081098,7.35228969,137.09,137.05,7.303]
[1740698081299,7.35228969,137.09,137.06,20.10454999]
[1740698081496,7.35228969,137.09,137.05,7.303]
[1740698081497,7.3014,137.08,137.04,7.3032]
[1740698081705,0.05108969,137.09,137.05,20.10454999]
[1740698082006,198.52,137.13,137.05,20.10454999]
[1740698082206,0.05142318,137.08,137.06,7.3023]
[1740698082405,198.52,137.13,137.08,20.10454999]
[1740698082606,7.3007,137.1,137.08,20.10454999]
[1740698082905,7.3007,137.1,137.05,7.3029]
[1740698083107,7.2995,137.12,137.08,20.10454999]
[1740698083311,7.2995,137.12,137.09,20.10454999]
[1740698083506,0.04813115,137.11,137.09,20.10454999]
[1740698083698,7.34823115,137.11,137.01,5.47250186]
[1740698083904,11.56,137.13,137.09,20.10454999]
[1740698084308,7.3002,137.11,137.05,7.3025]
[1740698084503,7.3002,137.11,137.09,20.10454999]
[1740698085006,7.3002,137.11,137.05,7.3025]
[1740698085007,7.3006,137.1,137.05,7.3025]
[1740698085205,0.05171148,137.11,137.07,20.10454999]
[1740698085406,11.56,137.13,137.07,20.10454999]
[1740698085606,7.3015,137.08,137.03,7.3036]
[1740698085808,7.3015,137.08,137.05,20.10454999]
[1740698086112,0.05153887,137.07,137.05,20.10454999]
[1740698088207,0.05153887,137.07,137.03,7.3036]
[1740698088505,0.05153887,137.07,137.05,20.10454999]
[1740698089010,0.05153887,137.07,137.06,20.10454999]
[1740698089511,0.05153887,137.07,137.04,7.3032]
[1740698089710,0.05153887,137.07,137.06,20.10454999]
[1740698093515,0.05153887,137.07,137.04,7.3033]
[1740698093712,0.05153887,137.07,137.06,20.10454999]
[1740698094019,0.05153887,137.07,137.04,7.3033]
[1740698094211,0.05153887,137.07,137.05,20.10454999]
[1740698094406,7.35343887,137.07,137.04,7.3033]
[1740698094611,7.35343887,137.07,137.05,20.10454999]
[1740698095112,7.35343887,137.07,137.03,7.3038]
[1740698095320,7.35343887,137.07,137.05,20.10454999]
[1740698095511,7.35343887,137.07,137.03,7.3038]
[1740698095712,7.35343887,137.07,137.05,20.10454999]
[1740698095913,0.05153887,137.07,137.05,20.10454999]
[1740698097217,0.05153887,137.07,137.05,27.40744999]
[1740698098421,0.05153887,137.07,137.05,20.10454999]
[1740698103222,0.05153887,137.07,137.06,20.10454999]
[1740698103620,0.05153887,137.07,137.05,7.3029]
[1740698103819,0.05153887,137.07,137.06,20.10454999]
[1740698104220,0.05153887,137.07,137.05,7.3029]
[1740698104415,0.05153887,137.07,137.06,20.10454999]
[1740698104624,0.05153887,137.07,137.05,20.10454999]
[1740698105421,0.05153887,137.07,137.0,3.904]
[1740698105720,7.3043,137.03,136.96,120.29400195]
[1740698105926,49.7314,137.09,136.98,20.10454999]
[1740698106124,0.05558284,137.01,136.98,20.10454999]
[1740698106322,7.3055,137.01,136.96,40.32531013]
[1740698106620,0.04821747,137.0,136.98,20.10454999]
[1740698106817,21.9,137.07,136.98,20.10454999]
[1740698107018,0.04976935,137.0,136.98,20.10454999]
[1740698107221,21.9,137.07,136.98,20.10454999]
[1740698107420,21.9,137.07,136.96,40.32531013]
[1740698107421,0.04894572,137.0,136.96,40.32531013]
[1740698107622,0.04591306,137.03,136.98,20.10454999]
[1740698107922,21.9,137.07,136.98,20.10454999]
[1740698107923,7.3046,137.02,136.98,20.10454999]
[1740698108117,7.35911629,137.02,136.96,47.63281013]
[1740698108315,7.35911629,137.02,136.98,20.10454999]
[1740698108518,7.35911629,137.02,136.96,7.3075]
[1740698108717,0.05451629,137.02,136.98,20.10454999]
[1740698109123,0.05451629,137.02,136.96,7.3075]
[1740698109318,0.05451629,137.02,136.98,20.10454999]
[1740698109728,7.35911629,137.02,136.95,0.84131841]
[1740698109923,7.35911629,137.02,136.98,20.10454999]
[1740698110432,7.35911629,137.02,136.91,40.32531013]
[1740698110433,7.35911629,137.02,136.96,7.3075]
[1740698110729,7.3046,137.02,136.98,20.10454999]
[1740698110924,0.05573115,137.0,136.98,20.10454999]
[1740698111124,0.05573115,137.0,136.96,7.3075]
[1740698111329,0.05573115,137.0,136.98,20.10454999]
[1740698111922,0.05573115,137.0,136.99,7.3062]
[1740698112228,0.05573115,137.0,136.99,27.41074999]
[1740698113632,21.70401702,137.08,137.01,7.3051]
[1740698113834,21.70401702,137.08,137.02,20.10454999]
[1740698114329,7.3037,137.04,136.91,20.2534]
[1740698114529,7.3037,137.04,137.02,20.10454999]
[1740698114932,0.04966468,137.04,137.02,20.10454999]
[1740698115231,0.04966468,137.04,137.02,20.15902671]
[1740698115623,0.04966468,137.04,137.03,20.10454999]
[1740698119138,7.35316468,137.04,137.03,20.10454999]
[1740698119336,7.35316468,137.04,137.02,0.05447672]
[1740698119836,0.04966468,137.04,137.02,20.15902671]
[1740698122037,0.04966468,137.04,137.02,0.05447672]
[1740698126540,3.97876468,137.04,137.02,0.05447672]
[1740698126941,7.3051,137.01,136.96,7.3075]
[1740698127244,7.3051,137.01,136.99,20.10454999]
[1740698127739,7.3051,137.01,136.96,7.3075]
[1740698128040,7.3051,137.01,136.99,20.10454999]
[1740698128344,0.04961886,137.0,136.96,7.3075]
[1740698128543,0.04961886,137.0,136.99,20.10454999]
[1740698128739,7.35521886,137.0,136.95,7.308]
[1740698128945,7.35521886,137.0,136.98,20.10454999]
[1740698129434,7.35521886,137.0,136.95,7.308]
[1740698129640,7.35521886,137.0,136.97,20.10454999]
[1740698132246,7.35521886,137.0,136.98,20.10454999]
[1740698132547,0.04961886,137.0,136.98,20.10454999]
[1740698132846,0.04961886,137.0,136.96,7.3075]
[1740698133144,0.04961886,137.0,136.94,3.8975]
[1740698133345,0.04961886,137.0,136.99,20.10454999]
[1740698133744,0.04961886,137.0,136.97,7.3069]
[1740698133941,0.04961886,137.0,136.99,20.10454999]
[1740698134352,0.04961886,137.0,136.97,7.3069]
[1740698134536,0.04961886,137.0,136.99,20.10454999]
[1740698135447,0.04961886,137.0,136.99,27.41074999]
[1740698135650,0.04961886,137.0,136.99,20.10454999]
[1740698136660,0.04961886,137.0,136.96,7.3075]
[1740698136861,0.04961886,137.0,136.99,20.10454999]
[1740698137049,0.04961886,137.0,136.96,7.3075]
[1740698137254,0.04961886,137.0,136.99,20.10454999]
[1740698137455,0.04961886,137.0,136.96,7.3075]
[1740698137654,0.04961886,137.0,136.99,20.10454999]
[1740698137860,0.04961886,137.0,136.96,7.3075]
[1740698138062,0.04961886,137.0,136.99,20.10454999]
[1740698138265,0.04961886,137.0,136.96,7.3075]
[1740698138562,0.04961886,137.0,136.99,20.10454999]
[1740698138956,0.04961886,137.0,136.96,7.3075]
[1740698139160,0.04961886,137.0,136.99,20.10454999]
[1740698139860,0.04961886,137.0,136.97,7.3069]
[1740698140060,0.04961886,137.0,136.99,20.10454999]
[1740698140265,0.04961886,137.0,136.97,7.3069]
[1740698140561,0.04961886,137.0,136.99,20.10454999]
[1740698141061,0.04961886,137.0,136.97,7.3069]
[1740698141258,0.04961886,137.0,136.99,20.10454999]
[1740698141662,0.04961886,137.0,136.94,3.8975]
[1740698141862,0.04961886,137.0,136.99,20.10454999]
[1740698142162,0.04961886,137.0,136.98,7.3057]
[1740698142359,0.04961886,137.0,136.99,20.10454999]
[1740698142661,0.04961886,137.0,136.99,27.41004999]
[1740698142863,243.14960097,137.08,136.99,20.10454999]
[1740698143059,243.14960097,137.08,137.04,20.10454999]
[1740698143258,208.74401702,137.08,137.06,20.10454999]
[1740698143453,208.74401702,137.08,137.07,20.10454999]
[1740698143454,10.14401702,137.08,137.07,20.10454999]
[1740698143665,10.14401702,137.08,137.07,27.40574999]
[1740698144962,10.14401702,137.08,137.07,20.10454999]
[1740698145962,0.04764135,137.09,137.07,20.10454999]
[1740698146162,0.04764135,137.09,137.08,20.10454999]
[1740698148062,5.7534,137.16,137.08,20.10454999]
[1740698148361,246.45840097,137.17,137.13,20.10454999]
[1740698148758,205.9562,137.17,137.13,20.10454999]
[1740698149067,7.2967,137.16,137.13,20.10454999]
[1740698149263,0.05291377,137.16,137.14,0.05128356]
[1740698149664,7.34951377,137.16,137.14,0.05128356]
[1740698150165,7.2969,137.15,137.14,0.05128356]
[1740698152063,0.05291377,137.16,137.14,0.05128356]
[1740698152064,0.05291377,137.16,137.14,20.15583355]
[1740698152361,0.05291377,137.16,137.15,20.10454999]
[1740698153362,7.34931377,137.16,137.15,20.10454999]
[1740698153558,0.05291377,137.16,137.15,20.10454999]
[1740698153967,7.2956,137.18,137.15,27.40144999]
[1740698154163,254.43830097,137.25,137.19,20.10454999]
[1740698154563,7.2952,137.19,137.15,7.2966]
[1740698155162,242.87830097,137.25,137.18,20.10454999]
[1740698155463,0.04981456,137.18,137.1,11.56]
[1740698155766,202.3761,137.25,137.1,11.56]
[1740698155767,7.2937,137.21,137.2,20.10454999]
[1740698156567,7.2943,137.2,137.19,0.05417295]
[1740698156762,7.2943,137.2,137.19,20.15872294]
[1740698158265,0.04826133,137.22,137.19,20.15872294]
[1740698158470,7.2939,137.21,137.19,20.15872294]
[1740698158872,0.04826133,137.22,137.19,20.15872294]
[1740698159171,7.34166133,137.22,137.2,20.10454999]
[1740698159968,0.04826133,137.22,137.21,20.10454999]
[1740698160775,198.54,137.25,137.21,27.39824999]
[1740698160974,5.893,137.31,137.24,20.10454999]
[1740698161174,5.893,137.31,137.26,20.10454999]
[1740698161679,5.893,137.31,137.15,1.8231]
[1740698161983,0.05333165,137.3,137.27,0.04709276]
[1740698162171,5.893,137.31,137.24,20.10454999]
[1740698162374,0.05607871,137.3,137.24,20.10454999]
[1740698162576,0.05607871,137.3,137.26,0.05518865]
[1740698163174,7.2905,137.27,137.26,0.05518865]
[1740698164884,7.2929,137.23,137.15,81.83943589]
[1740698165177,49.703,137.31,137.21,20.10454999]
[1740698165383,7.2932,137.22,137.21,20.10454999]
[1740698166180,0.04605594,137.23,137.21,20.10454999]
[1740698166381,0.04605594,137.23,137.22,20.10454999]
[1740698166787,7.2935,137.22,137.2,0.05540425]
[1740698167185,7.2935,137.22,137.21,20.10454999]
[1740698168285,0.04605594,137.23,137.21,20.10454999]
[1740698168475,0.04605594,137.23,137.22,20.10454999]
[1740698168878,0.04605594,137.23,137.2,0.05540425]
[1740698169076,0.04605594,137.23,137.22,20.10454999]
[1740698169486,0.04605594,137.23,137.2,0.05540425]
[1740698169685,0.04605594,137.23,137.22,20.10454999]
[1740698172181,0.04605594,137.23,137.2,0.05540425]
[1740698172486,0.04605594,137.23,137.22,20.10454999]
[1740698173086,0.04605594,137.23,137.2,0.05540425]
[1740698173275,0.04605594,137.23,137.22,20.10454999]
[1740698174787,0.04605594,137.23,137.2,7.34940425]
[1740698175089,0.04605594,137.23,137.22,20.10454999]
[1740698175284,0.04605594,137.23,137.22,27.39774999]
[1740698175485,0.04605594,137.23,137.22,20.10454999]
[1740698181393,0.04605594,137.23,137.2,0.05540425]
[1740698181583,0.04605594,137.23,137.2,20.15995424]
[1740698182293,7.2935,137.22,137.2,20.15995424]
[1740698182693,7.2937,137.21,137.2,0.05540425]
[1740698185293,7.2954,137.18,137.14,7.2972]
[1740698185792,7.2954,137.18,137.17,20.10454999]
[1740698185991,5.7574,137.24,137.17,20.10454999]
[1740698186190,7.295,137.19,137.18,20.10454999]
[1740698186691,7.295,137.19,137.17,0.0535291]
[1740698186990,7.295,137.19,137.18,20.10454999]
[1740698187187,0.0548026,137.2,137.17,0.0535291]
[1740698187392,0.0548026,137.2,137.18,20.10454999]
[1740698188091,0.0548026,137.2,137.19,20.10454999]
[1740698190496,0.0548026,137.2,137.17,0.0535291]
[1740698190693,0.0548026,137.2,137.19,20.10454999]
[1740698191096,0.0548026,137.2,137.17,0.0535291]
[1740698191299,0.0548026,137.2,137.19,20.10454999]
[1740698191796,0.0548026,137.2,137.17,0.0535291]
[1740698192000,0.0548026,137.2,137.19,20.10454999]
[1740698192499,0.0548026,137.2,137.17,0.0535291]
[1740698192700,0.0548026,137.2,137.19,20.10454999]
[1740698192999,0.0548026,137.2,137.17,0.0535291]
[1740698193202,0.0548026,137.2,137.19,20.10454999]
[1740698193495,7.3491026,137.2,137.19,20.10454999]
[1740698193699,0.0548026,137.2,137.17,0.0535291]
[1740698193898,0.0548026,137.2,137.17,20.15807909]
[1740698194101,0.0548026,137.2,137.17,0.0535291]
[1740698195301,7.2953,137.19,137.17,0.0535291]
[1740698195898,7.3493026,137.2,137.17,0.0535291]
[1740698197396,0.0548026,137.2,137.19,7.2948]
[1740698197602,0.0548026,137.2,137.19,27.39934999]
[1740698198001,198.34,137.25,137.19,20.10454999]
[1740698198195,198.34,137.25,137.23,20.10454999]
[1740698198601,198.34,137.25,137.23,27.39694999]
[1740698199204,198.39314223,137.25,137.23,27.44462078]
[1740698199404,0.05314223,137.25,137.23,20.15222078]
[1740698199605,40.50220097,137.27,137.24,20.10454999]
[1740698199809,40.50220097,137.27,137.26,20.10454999]
[1740698200305,40.50220097,137.27,137.23,0.04767079]
[1740698200503,40.50220097,137.27,137.25,20.10454999]
[1740698200700,0.04688673,137.26,137.25,20.10454999]
[1740698201706,0.04688673,137.26,137.23,0.04767079]
[1740698202398,0.04688673,137.26,137.23,20.15222078]
[1740698202603,0.04688673,137.26,137.24,20.10454999]
[1740698202896,0.04688673,137.26,137.25,20.10454999]
[1740698204902,10.14401702,137.3,137.25,27.39614999]
[1740698205103,10.14401702,137.3,137.29,20.10454999]
[1740698206412,10.14401702,137.3,137.28,0.05595985]
[1740698206801,17.43301702,137.3,137.28,0.05595985]
[1740698207303,10.14401702,137.3,137.28,20.16050984]
[1740698207509,10.14401702,137.3,137.28,0.05595985]
[1740698207911,0.05299119,137.31,137.28,20.16050984]
[1740698208102,0.05299119,137.31,137.29,20.10454999]
[1740698211113,7.34139119,137.31,137.29,20.10454999]
[1740698211611,7.289,137.3,137.28,0.05595985]
[1740698211816,0.05299119,137.31,137.28,0.05595985]
[1740698212816,7.2895,137.29,137.28,0.05595985]
[1740698213017,0.05299119,137.31,137.28,0.05595985]
[1740698213217,0.05299119,137.31,137.28,20.16050984]
[1740698213418,7.289,137.3,137.28,20.16050984]
[1740698214215,7.34159119,137.31,137.29,20.10454999]
[1740698214411,0.05299119,137.31,137.3,20.10454999]
[1740698215213,0.05299119,137.31,137.28,0.05595985]
[1740698215418,7.2894,137.3,137.28,20.16050984]
[1740698215621,7.2894,137.3,137.29,20.10454999]
[1740698215916,7.2895,137.29,137.28,20.16050984]
[1740698216517,7.2895,137.29,137.28,0.05595985]
[1740698220817,7.289,137.3,137.28,20.16050984]
[1740698221022,0.05299119,137.31,137.3,20.10454999]
[1740698221933,7.2861,137.36,137.3,20.10454999]
[1740698222128,198.36,137.37,137.35,20.10454999]
[1740698222323,198.36,137.37,137.29,2.01]
[1740698222324,198.36,137.37,137.36,20.10454999]
[1740698222529,7.2851,137.38,137.36,20.10454999]
[1740698222725,7.2851,137.38,137.37,20.10454999]
[1740698223936,40.55323784,137.39,137.37,20.10454999]
[1740698224129,40.55323784,137.39,137.38,20.10454999]
[1740698224535,47.83743784,137.39,137.38,20.10454999]
[1740698225237,40.55323784,137.39,137.36,0.05065428]
[1740698225535,40.55323784,137.39,137.37,20.10454999]
[1740698225736,0.05103687,137.39,137.36,20.15520427]
[1740698225936,7.2852,137.37,137.36,20.15520427]
[1740698226140,7.2852,137.37,137.36,0.05065428]
[1740698226437,7.2872,137.34,137.29,3.6743]
[1740698226635,1.8546,137.38,137.33,20.10454999]